bitfinex-derivatives/quotes_SOLF0:USTF0_20250625
["timestamp","ask_amount","ask_price","bid_price","bid_amount"]
[1750837163347,39.01079146,146.9,146.88,6.8049]
[1750837164659,39.01079146,146.9,146.89,6.8047]
[1750837166449,39.01079146,146.9,146.88,6.805]
[1750837166754,39.01079146,146.9,146.89,6.8047]
[1750837168657,39.01079146,146.9,146.83,3.33079146]
[1750837169257,39.01079146,146.9,146.87,6.8054]
[1750837170060,39.01079146,146.9,146.88,6.8051]
[1750837170355,39.01079146,146.9,146.82,4.4959]
[1750837170547,3.33079146,146.86,146.78,37.8674]
[1750837170855,35.6,146.85,146.78,42.5625]
[1750837171052,35.6,146.85,146.82,6.8078]
[1750837171258,3.33079146,146.84,146.78,42.5625]
[1750837171455,3.33079146,146.84,146.78,6.9625]
[1750837172058,6.8078,146.83,146.78,6.9625]
[1750837172255,6.8078,146.83,146.8,6.8085]
[1750837172556,375.0148108,147.1,146.78,4.6951]
[1750837172752,3.33079146,146.86,146.84,6.8067]
[1750837172949,35.6,146.85,146.84,6.8067]
[1750837173163,35.6,146.85,146.78,4.6951]
[1750837173353,35.6,146.85,146.83,6.8073]
[1750837174254,3.33079146,146.84,146.83,6.8073]
[1750837178658,3.33079146,146.84,146.82,6.8077]
[1750837179059,35.6,146.85,146.82,6.8077]
[1750837179255,3.33079146,146.84,146.83,6.8075]
[1750837179450,3.33079146,146.84,146.78,4.6951]
[1750837179655,3.33079146,146.84,146.82,6.8078]
[1750837180260,10.13789146,146.84,146.82,6.8078]
[1750837180657,3.33079146,146.84,146.78,4.6951]
[1750837180876,3.33079146,146.82,146.78,4.6951]
[1750837181060,3.33079146,146.8,146.79,6.8091]
[1750837181368,38.93079146,146.8,146.79,6.8091]
[1750837181552,38.93079146,146.8,146.78,6.8095]
[1750837181961,38.93079146,146.8,146.74,4.586]
[1750837182160,3.33079146,146.77,146.76,6.8108]
[1750837182350,3.33079146,146.79,146.74,4.586]
[1750837183163,3.33079146,146.79,146.77,6.81]
[1750837183465,3.33079146,146.79,146.74,4.586]
[1750837183855,6.8099,146.78,146.74,4.586]
[1750837184065,3.33079146,146.79,146.74,4.586]
[1750837184461,10.14049146,146.79,146.76,6.8105]
[1750837184663,3.33079146,146.79,146.76,6.8105]
[1750837185265,6.8101,146.78,146.75,6.8109]
[1750837185968,10.14109146,146.77,146.74,4.586]
[1750837186172,3.33079146,146.77,146.75,6.8112]
[1750837186564,3.33079146,146.77,146.71,6.20319822]
[1750837186877,3.33079146,146.77,146.72,7.82150917]
[1750837187164,3.33079146,146.77,146.73,3.25520917]
[1750837187468,3.33079146,146.78,146.77,6.8102]
[1750837189169,3.33079146,146.83,146.77,3.25521508]
[1750837189370,38.95079146,146.83,146.78,4.6463]
[1750837189672,45.75839146,146.83,146.8,6.8085]
[1750837190074,38.95079146,146.83,146.78,4.6463]
[1750837190375,38.95079146,146.83,146.79,3.25896202]
[1750837190578,38.95079146,146.83,146.78,4.6463]
[1750837190775,38.95079146,146.83,146.79,3.25871169]
[1750837190968,38.95079146,146.83,146.78,4.6463]
[1750837191168,38.95079146,146.83,146.79,3.25871169]
[1750837191476,38.95079146,146.83,146.81,6.8081]
[1750837192673,45.75839146,146.83,146.81,6.8081]
[1750837194577,35.62,146.83,146.82,6.808]
[1750837194773,35.62,146.83,146.78,4.6463]
[1750837195277,42.4276,146.83,146.81,6.8084]
[1750837195478,35.62,146.83,146.79,3.26143722]
[1750837195680,35.62,146.83,146.78,4.6463]
[1750837195979,42.4276,146.83,146.8,6.8085]
[1750837196178,35.62,146.83,146.8,6.8085]
[1750837196369,42.4277,146.83,146.8,6.8085]
[1750837197676,35.62,146.83,146.8,6.8085]
[1750837197982,6.8081,146.82,146.8,6.8085]
[1750837198378,35.62,146.83,146.8,6.8085]
[1750837198379,42.4278,146.83,146.8,6.8085]
[1750837198579,35.62,146.83,146.79,6.8092]
[1750837198886,35.62,146.83,146.78,4.6463]
[1750837199488,42.4277,146.83,146.8,6.8086]
[1750837200481,35.62,146.83,146.78,10.84949822]
[1750837200787,35.62,146.83,146.79,3.25748605]
[1750837200984,38.95079146,146.83,146.79,6.8091]
[1750837201587,6.8083,146.82,146.79,6.8091]
[1750837202887,6.8083,146.82,146.8,6.8089]
[1750837204293,6.8083,146.82,146.79,6.8091]
[1750837204496,6.8084,146.81,146.79,6.8091]
[1750837204796,6.8084,146.81,146.78,11.4558]
[1750837205096,3.33079146,146.81,146.78,4.6463]
[1750837205386,3.33079146,146.81,146.79,6.8092]
[1750837205985,38.95079146,146.83,146.78,4.6463]
[1750837206387,6.8082,146.82,146.79,6.8092]
[1750837208387,3.33079146,146.81,146.77,6.20319822]
[1750837208694,3.33079146,146.81,146.76,8.60359822]
[1750837208992,6.8092,146.8,146.77,6.8101]
[1750837209897,3.33079146,146.81,146.77,6.8101]
[1750837210395,6.8093,146.8,146.77,6.8101]
[1750837210899,6.8095,146.79,146.77,6.8101]
[1750837211397,6.8091,146.8,146.77,6.8101]
[1750837211593,38.85079146,146.79,146.76,6.20319822]
[1750837211788,3.33079146,146.77,146.74,4.6043]
[1750837211992,3.33079146,146.75,146.72,6.20319822]
[1750837212197,38.85079146,146.75,146.72,6.20319822]
[1750837213498,38.85079146,146.75,146.73,6.20319822]
[1750837214092,38.85079146,146.75,146.74,6.8117]
[1750837215499,38.85079146,146.75,146.74,13.01489822]
[1750837215802,35.52,146.75,146.74,13.01489822]
[1750837216486,722.4,146.82,146.7,22.61255939]
[1750837216487,35.54,146.78,146.73,8.35153201]
[1750837216686,35.54,146.78,146.76,6.3108059]
[1750837217096,35.54,146.78,146.77,6.81]
[1750837222103,35.54,146.78,146.76,13.1214059]
[1750837222308,35.54,146.78,146.76,6.3108059]
[1750837223308,35.54,146.78,146.77,6.8103]
[1750837223708,35.54,146.78,146.76,6.3108059]
[1750837223912,3.33079146,146.77,146.76,13.1213059]
[1750837224111,623.72,146.82,146.76,9.59018124]
[1750837224307,627.05079146,146.82,146.79,6.809]
[1750837224514,6.66158292,146.8,146.75,6.3108059]
[1750837224815,10.14159146,146.76,146.75,6.3108059]
[1750837225017,38.77079146,146.76,146.73,6.3108059]
[1750837225318,6.8122,146.73,146.72,6.3108059]
[1750837225615,10.14299146,146.73,146.72,9.59302778]
[1750837225916,10.14299146,146.73,146.72,9.60322304]
[1750837226310,10.14299146,146.73,146.71,6.32100116]
[1750837227206,6.8126,146.72,146.71,6.32100116]
[1750837227413,3.33079146,146.73,146.71,6.32100116]
[1750837227414,3.33079146,146.73,146.71,9.60288656]
[1750837227614,35.44,146.72,146.7,2.3797]
[1750837227921,35.44,146.72,146.71,9.59781765]
[1750837229308,35.44,146.75,146.71,9.59781765]
[1750837229514,35.44,146.77,146.74,6.31787445]
[1750837229715,35.44,146.77,146.75,6.8112]
[1750837230322,35.44,146.77,146.74,13.12927445]
[1750837230727,35.44,146.77,146.74,6.31787445]
[1750837230918,35.44,146.77,146.75,3.23914989]
[1750837231118,35.44,146.77,146.74,6.31787445]
[1750837231426,35.44,146.77,146.75,10.04996114]
[1750837231724,35.44,146.77,146.75,6.8109]
[1750837232117,35.44,146.77,146.75,13.12877445]
[1750837232921,35.44,146.77,146.76,6.8108]
[1750837233624,35.44,146.77,146.75,13.12887445]
[1750837234128,35.44,146.77,146.75,6.811]
[1750837234820,35.44,146.77,146.75,13.12887445]
[1750837235025,35.44,146.77,146.76,6.8108]
[1750837235327,35.44,146.77,146.76,10.05321032]
[1750837236816,35.44,146.77,146.76,16.36522872]
[1750837237221,38.77079146,146.8,146.79,6.8094]
[1750837237422,35.44,146.8,146.79,6.8094]
[1750837237724,35.44,146.8,146.79,10.0517448]
[1750837238123,35.44,146.83,146.81,6.8083]
[1750837238921,39.64090619,146.83,146.81,6.8083]
[1750837239224,35.44,146.83,146.81,6.8083]
[1750837239423,35.44,146.83,146.82,6.808]
[1750837239629,39.64090468,146.88,146.82,3.237134]
[1750837239818,39.64090468,146.88,146.83,9.5491524]
[1750837240021,39.64090468,146.88,146.86,6.8059]
[1750837240426,39.64090468,146.88,146.87,6.8057]
[1750837240721,136.3316,146.92,146.85,6.3120184]
[1750837240722,35.44,146.91,146.85,6.3120184]
[1750837241329,42.244,146.91,146.85,6.3120184]
[1750837241527,4.19363443,146.93,146.86,3.22952076]
[1750837241728,590.6716,146.96,146.88,6.3120184]
[1750837241729,3.33079146,146.94,146.88,6.3120184]
[1750837241925,3.33079146,146.94,146.87,6.3120184]
[1750837242116,3.33079146,146.94,146.88,3.22811329]
[1750837242428,6.8031,146.93,146.89,6.8043]
[1750837243029,10.13339146,146.94,146.9,6.8042]
[1750837243324,3.33079146,146.94,146.87,6.3120184]
[1750837243530,10.13329146,146.94,146.9,6.804]
[1750837243829,10.13329146,146.94,146.88,3.22766892]
[1750837243830,3.33079146,146.94,146.87,6.3120184]
[1750837244030,3.33079146,146.94,146.88,3.22802575]
[1750837244229,3.33079146,146.94,146.87,6.3120184]
[1750837244432,3.33079146,146.94,146.88,6.55147916]
[1750837244730,35.44,146.95,146.89,3.2045848]
[1750837244927,35.44,146.95,146.88,9.64280986]
[1750837245233,35.44,146.95,146.89,3.20463582]
[1750837245424,35.44,146.95,146.88,9.64280986]
[1750837245619,35.44,146.95,146.89,5.52994685]
[1750837245827,35.44,146.95,146.9,6.53513831]
[1750837246118,35.44,146.95,146.94,6.8024]
[1750837248433,10.13179146,146.97,146.94,6.8024]
[1750837249234,35.42,146.98,146.91,2.2766]
[1750837249235,35.42,146.98,146.92,3.33079146]
[1750837249824,35.42,146.98,146.96,6.8012]
[1750837251326,35.42,146.98,146.97,6.801]
[1750837251532,35.42,146.98,146.93,2.3098]
[1750837251836,35.42,146.98,146.96,6.8012]
[1750837252132,38.75079146,146.98,146.93,2.3098]
[1750837252342,45.55169146,146.98,146.95,6.8019]
[1750837252543,3.33079146,146.96,146.89,2.3256]
[1750837252841,3.33079146,146.94,146.89,2.3256]
[1750837253042,3.33079146,146.94,146.93,6.8029]
[1750837258743,3.33079146,146.96,146.93,6.8029]
[1750837258940,3.33079146,146.94,146.87,4.5774]
[1750837259147,3.33079146,146.94,146.87,6.8453]
[1750837259148,38.69079146,146.94,146.87,6.8453]
[1750837259341,38.69079146,146.94,146.92,6.8031]
[1750837260236,38.69079146,146.94,146.87,6.8453]
[1750837260641,3.33079146,146.92,146.87,6.8453]
[1750837261239,38.69079146,146.94,146.93,6.8029]
[1750837261439,35.36,146.94,146.93,6.8029]
[1750837264649,35.36,146.97,146.89,3.33079146]
[1750837264842,35.36,146.97,146.91,3.33079146]
[1750837265045,35.36,146.97,146.93,3.33079146]
[1750837265238,35.36,146.97,146.96,6.8015]
[1750837265641,3.33079146,146.99,146.93,3.33079146]
[1750837266248,3.33079146,146.99,146.97,6.8008]
[1750837266448,3.33079146,146.99,146.93,3.33079146]
[1750837268151,3.33079146,146.99,146.98,6.8006]
[1750837269639,35.36,147.0,146.99,6.8001]
[1750837273455,626.79079146,147.03,146.96,2.1883]
[1750837273649,623.46,147.03,146.97,3.33079146]
[1750837273854,35.34,147.03,146.97,3.33079146]
[1750837275256,35.34,147.03,147.02,6.7987]
[1750837282961,39.59338124,147.03,147.02,6.7987]
[1750837283262,39.60530806,147.03,147.02,6.7987]
[1750837285461,4.26530806,147.03,147.02,6.7987]
[1750837285662,4.26240536,147.05,146.99,3.33079146]
[1750837285859,4.26240536,147.04,147.0,3.18892294]
[1750837286059,4.26240536,147.03,147.02,6.7987]
[1750837286261,4.26790271,147.03,146.99,3.33079146]
[1750837286558,4.26786738,147.05,147.04,6.7978]
[1750837287660,35.3,147.06,147.05,6.7973]
[1750837287972,39.54962709,147.06,147.05,6.7973]
[1750837289169,39.55184764,147.06,147.05,6.7973]
[1750837291776,42.8826391,147.06,147.0,4.563]
[1750837291962,4.25184764,147.05,147.0,4.563]
[1750837292163,4.22517595,147.05,147.0,4.563]
[1750837292456,4.22517595,147.05,147.03,6.7979]
[1750837293867,45.42789146,147.06,147.03,6.7979]
[1750837294168,6.7975,147.05,147.03,6.7979]
[1750837294363,38.63079146,147.06,147.04,6.7978]
[1750837294563,35.3,147.06,147.01,3.33079146]
[1750837294760,35.3,147.06,147.02,3.18631667]
[1750837294965,35.3,147.06,147.05,6.7973]
[1750837298771,38.63079146,147.06,147.04,6.7975]
[1750837299273,45.42789146,147.06,147.04,6.7975]
[1750837299470,38.63079146,147.06,147.03,6.7982]
[1750837299776,3.33079146,147.04,146.96,2.1948]
[1750837299966,3.33079146,147.01,146.97,3.18848288]
[1750837300167,3.33079146,147.01,147.0,6.7996]
[1750837301176,38.63079146,147.02,147.01,6.7992]
[1750837305675,38.63079146,147.02,147.0,6.7994]
[1750837306874,38.63079146,147.02,146.99,6.7999]
[1750837307083,38.63079146,147.02,146.97,6.27795893]
[1750837307379,38.63079146,147.02,147.0,6.7994]
[1750837307578,38.63079146,147.02,146.97,6.27795893]
[1750837307779,45.42969146,147.02,146.98,3.200488]
[1750837307975,49.66479953,147.02,146.99,6.7997]
[1750837308177,45.42969146,147.02,146.99,6.7997]
[1750837308680,35.3,147.02,146.97,6.27795893]
[1750837308981,35.3,147.02,146.98,9.4813728]
[1750837309184,35.3,147.02,146.99,3.20341387]
[1750837309380,35.3,147.02,147.0,6.7992]
[1750837310278,35.3,147.02,147.01,6.7992]
[1750837314877,39.53119634,147.02,147.0,6.7994]
[1750837315078,35.3,147.02,147.0,6.7994]
[1750837315381,42.0987,147.02,147.0,6.7994]
[1750837315579,4.2312331,147.01,147.0,6.7994]
[1750837315783,4.23122877,147.01,147.0,6.7994]
[1750837316176,35.3,147.02,147.0,6.7994]
[1750837317084,38.63079146,147.02,147.0,6.7994]
[1750837317281,45.42959146,147.02,147.0,6.7994]
[1750837317483,35.3,147.02,147.01,6.7992]
[1750837317687,35.3,147.02,147.01,10.00930882]
[1750837318787,35.3,147.02,147.01,10.00926009]
[1750837319673,35.3,147.02,147.01,10.00798151]
[1750837320070,39.53171958,147.02,147.0,13.07725893]
[1750837320271,35.3,147.02,146.99,6.27795893]
[1750837320476,35.3,147.02,147.0,3.20879714]
[1750837320677,38.63079146,147.02,146.99,6.27795893]
[1750837320873,3.33079146,147.0,146.98,6.27795893]
[1750837321172,3.33079146,147.0,146.98,13.07805893]
[1750837321578,3.33079146,147.0,146.99,6.8001]
[1750837322388,10.13049146,147.0,146.98,6.8004]
[1750837322684,3.33079146,147.0,146.98,6.8004]
[1750837322886,3.33079146,147.0,146.99,6.8001]
[1750837323288,35.3,147.02,146.99,3.2074314]
[1750837323490,35.3,147.02,147.01,6.7992]
[1750837324886,35.3,147.02,147.01,13.07715893]
[1750837325087,35.26,147.05,147.04,6.7977]
[1750837325284,35.26,147.05,147.01,6.28713415]
[1750837325680,35.26,147.05,147.03,6.798]
[1750837326190,35.26,147.05,147.01,6.28713415]
[1750837326384,35.26,147.05,147.04,6.7978]
[1750837327495,38.57079146,147.08,147.07,6.7964]
[1750837327785,38.57079146,147.08,147.04,6.28713415]
[1750837328783,35.24,147.08,147.04,6.28713415]
[1750837330389,35.24,147.08,147.03,6.28713415]
[1750837330585,35.24,147.08,147.01,73.60581782]
[1750837330984,45.36689146,147.08,147.01,73.60581782]
[1750837331685,45.36689146,147.08,147.01,11.60581782]
[1750837332090,38.57079146,147.08,147.01,11.60581782]
[1750837332595,38.57079146,147.08,147.06,6.7965]
[1750837332789,38.57079146,147.08,147.01,11.60581782]
[1750837333288,38.57079146,147.08,147.02,8.27502636]
[1750837333491,38.57079146,147.08,147.01,11.60581782]
[1750837333793,35.24,147.08,147.07,6.7964]
[1750837337104,35.24,147.08,147.06,6.7967]
[1750837337300,35.24,147.08,147.03,3.33079146]
[1750837337496,35.24,147.08,147.04,3.19042596]
[1750837337804,35.24,147.08,147.07,6.7964]
[1750837340204,35.24,147.11,147.05,3.33079146]
[1750837340405,39.34245685,147.11,147.05,3.33079146]
[1750837340601,39.34245685,147.11,147.05,7.85499146]
[1750837341006,42.0346,147.11,147.09,6.7952]
[1750837342407,46.13699492,147.11,147.09,6.7952]
[1750837342803,42.0346,147.11,147.09,6.7952]
[1750837343301,46.13699492,147.11,147.09,6.7952]
[1750837343495,42.0346,147.11,147.09,6.7952]
[1750837343913,46.13699492,147.11,147.09,6.7952]
[1750837344102,42.0346,147.11,147.09,6.7952]
[1750837344498,46.14175103,147.11,147.09,6.7952]
[1750837344706,42.0346,147.11,147.09,6.7952]
[1750837345414,42.0346,147.11,147.08,6.7957]
[1750837346014,42.0346,147.11,147.09,6.7954]
[1750837347810,35.24,147.11,147.09,6.7954]
[1750837348513,42.0346,147.11,147.09,6.7954]
[1750837351016,42.0346,147.11,147.05,7.85499146]
[1750837351017,6.7951,147.1,147.08,6.7957]
[1750837352016,42.0348,147.11,147.08,6.7957]
[1750837353522,6.795,147.1,147.08,6.7957]
[1750837355520,42.0348,147.11,147.08,6.7957]
[1750837356313,42.0348,147.11,147.05,7.85499146]
[1750837356523,42.0348,147.11,147.06,3.17966298]
[1750837356819,42.0348,147.11,147.08,6.7956]
[1750837357420,42.0348,147.11,147.09,6.7955]
[1750837358229,35.24,147.11,147.1,6.795]
[1750837358619,6.7938,147.13,147.1,6.795]
[1750837358818,38.51079146,147.14,147.11,6.7945]
[1750837359018,45.30419146,147.14,147.11,6.7945]
[1750837361431,6.7936,147.13,147.11,6.7945]
[1750837361628,6.7936,147.13,147.1,6.7949]
[1750837362324,3.33079146,147.12,147.06,35.18]
[1750837362528,3.33079146,147.12,147.07,3.1784315]
[1750837362726,3.33079146,147.12,147.05,4.5242]
[1750837362918,6.795,147.1,147.07,6.796]
[1750837363124,4.11197955,147.13,147.05,4.5242]
[1750837363429,10.12559146,147.11,147.08,6.7957]
[1750837363631,6.7948,147.11,147.08,6.7957]
[1750837363831,10.12559146,147.11,147.08,6.7957]
[1750837366134,10.12559146,147.11,147.09,6.7955]
[1750837366622,10.12559146,147.11,147.05,4.5242]
[1750837366824,10.12559146,147.11,147.08,6.7957]
[1750837367129,6.795,147.1,147.08,6.7957]
[1750837369330,10.12559146,147.11,147.08,6.7957]
[1750837369840,14.23656238,147.11,147.08,6.7957]
[1750837370030,10.12559146,147.11,147.08,6.7957]
[1750837370528,14.23656238,147.11,147.08,6.7957]
[1750837370729,10.12559146,147.11,147.08,6.7957]
[1750837371131,14.23795791,147.11,147.08,6.7957]
[1750837371431,6.795,147.1,147.07,6.7962]
[1750837371628,6.795,147.1,147.08,3.18287543]
[1750837371935,6.795,147.1,147.05,12.79922636]
[1750837372136,6.795,147.1,147.06,3.18396216]
[1750837372335,6.795,147.1,147.07,3.18396216]
[1750837372540,6.795,147.1,147.08,3.18396216]
[1750837372834,10.12549146,147.11,147.08,6.7957]
[1750837373336,14.23785791,147.11,147.08,6.7957]
[1750837373535,10.12549146,147.11,147.08,6.7957]
[1750837374634,14.23637195,147.11,147.09,6.7955]
[1750837374831,10.12549146,147.11,147.09,6.7955]
[1750837375336,14.23637195,147.11,147.09,6.7955]
[1750837375536,10.12549146,147.11,147.09,6.7955]
[1750837376031,14.23637195,147.11,147.09,6.7955]
[1750837376231,10.12549146,147.11,147.09,6.7955]
[1750837377032,14.23637195,147.11,147.09,6.7955]
[1750837377231,10.12549146,147.11,147.08,6.7957]
[1750837377535,10.12549146,147.11,147.06,8.27502636]
[1750837377732,10.12549146,147.11,147.07,3.18613924]
[1750837377931,3.33079146,147.11,147.09,6.7952]
[1750837378337,2.12901009,147.1,147.09,6.7952]
[1750837380740,6.24336107,147.1,147.09,6.7952]
[1750837381538,6.24336107,147.1,147.09,9.98418266]
[1750837382834,6.24459231,147.1,147.09,9.98418266]
[1750837384639,6.24459231,147.1,147.09,3.18898266]
[1750837384831,4.11558222,147.1,147.09,3.19016662]
[1750837385026,37.30901009,147.14,147.09,5.31917671]
[1750837385232,4.11705719,147.13,147.12,8.92281009]
[1750837385437,35.18,147.14,147.12,5.31917671]
[1750837385629,35.18,147.14,147.13,6.7936]
[1750837385830,35.18,147.14,147.11,2.12901009]
[1750837386037,35.18,147.14,147.12,3.18650514]
[1750837386238,39.29335231,147.14,147.12,6.28629959]
[1750837386438,39.29335231,147.14,147.13,6.7936]
[1750837386644,35.18,147.14,147.13,6.7936]
[1750837388945,4.11335342,147.15,147.13,6.7936]
[1750837389741,13.5757,147.26,147.14,3.32412275]
[1750837389949,3.32412275,147.23,147.15,6.5018133]
[1750837390130,3.32412275,147.23,147.17,6.28629959]
[1750837390334,3.32412275,147.23,147.18,3.17556212]
[1750837390541,3.32412275,147.23,147.16,12.96409959]
[1750837390731,3.32412275,147.23,147.17,6.28629959]
[1750837390931,6.79,147.21,147.18,6.7911]
[1750837391135,41.89,147.21,147.18,6.7911]
[1750837391434,3.32412275,147.19,147.15,6.28629959]
[1750837391638,3.32412275,147.16,147.12,6.28629959]
[1750837391840,3.32412275,147.14,147.1,6.28629959]
[1750837392042,3.32412275,147.12,147.1,6.28629959]
[1750837392336,38.42412275,147.12,147.1,6.28629959]
[1750837392544,38.42412275,147.12,147.09,13.08169959]
[1750837392739,38.42412275,147.12,147.09,6.7954]
[1750837393145,38.42412275,147.12,147.1,6.795]
[1750837394935,38.42412275,147.12,147.08,13.08199959]
[1750837395141,3.32412275,147.1,147.08,6.7957]
[1750837395346,3.32412275,147.1,147.07,6.28629959]
[1750837396145,3.32412275,147.1,147.09,6.7955]
[1750837403644,3.32412275,147.1,147.08,6.7957]
[1750837405447,3.32412275,147.1,147.09,6.7954]
[1750837410758,41.8943,147.12,147.09,6.7954]
[1750837411056,3.32412275,147.1,147.09,6.7954]
[1750837413754,3.32412275,147.1,147.08,6.7957]
[1750837415959,45.15912275,147.1,147.08,6.7957]
[1750837417454,45.15912275,147.1,147.06,6.28629959]
[1750837418161,45.15912275,147.1,147.07,6.28629959]
[1750837418549,45.15912275,147.1,147.06,6.28629959]
[1750837418755,45.15912275,147.1,147.07,6.28629959]
[1750837418954,45.15912275,147.1,147.06,6.28629959]
[1750837419163,45.15912275,147.1,147.08,6.7959]
[1750837419368,6.7958,147.09,147.06,6.28629959]
[1750837419570,38.36412275,147.1,147.06,6.28629959]
[1750837419864,38.36412275,147.1,147.07,6.7962]
[1750837420455,6.7956,147.09,147.06,13.08289959]
[1750837420858,38.36412275,147.1,147.06,6.28629959]
[1750837421368,45.15942275,147.1,147.07,6.7961]
[1750837424266,2.12973886,147.08,147.07,6.7961]
[1750837424466,2.12973886,147.12,147.07,8.41603845]
[1750837424768,2.12973886,147.1,147.08,6.28629959]
[1750837424970,2.12973886,147.1,147.09,6.7953]
[1750837426472,10.12091985,147.12,147.09,6.7953]
[1750837430976,3.32661985,147.12,147.1,6.7949]
[1750837431971,10.12081985,147.12,147.08,6.28629959]
[1750837432178,10.12081985,147.12,147.09,6.7953]
[1750837433874,3.32661985,147.12,147.1,6.7949]
[1750837434177,38.36661985,147.14,147.1,6.28629959]
[1750837434378,38.36661985,147.14,147.09,6.28629959]
[1750837434875,45.16001985,147.14,147.11,6.7943]
[1750837436181,45.16001985,147.14,147.11,13.08059959]
[1750837437984,6.7936,147.13,147.11,13.08059959]
[1750837438376,6.7936,147.13,147.11,6.28629959]
[1750837438981,3.32661985,147.12,147.11,6.28629959]
[1750837439284,3.32661985,147.12,147.1,13.08129959]
[1750837441689,45.16001985,147.14,147.11,6.7946]
[1750837444790,45.16001985,147.14,147.11,13.08089959]
[1750837445789,45.16001985,147.14,147.12,6.794]
[1750837446292,2.12834735,147.13,147.12,6.794]
[1750837446486,2.12834735,147.13,147.11,13.08059959]
[1750837446788,37.16834735,147.14,147.11,6.28629959]
[1750837447099,37.16834735,147.14,147.13,6.7936]
[1750837447588,43.96164735,147.14,147.12,6.7939]
[1750837447786,37.16834735,147.14,147.12,6.7939]
[1750837448392,35.04,147.14,147.12,6.7939]
[1750837448892,41.8332,147.14,147.12,6.7939]
[1750837449389,35.04,147.14,147.12,6.7939]
[1750837450183,41.8332,147.14,147.12,6.7939]
[1750837450491,35.04,147.14,147.12,6.7939]
[1750837452399,41.8332,147.14,147.12,6.7939]
[1750837453692,41.8332,147.14,147.11,13.08059959]
[1750837454394,35.04,147.14,147.12,6.7939]
[1750837454895,41.8333,147.14,147.12,6.7939]
[1750837455096,41.8333,147.14,147.11,13.08059959]
[1750837455294,3.32489923,147.13,147.11,6.28629959]
[1750837455486,3.32489923,147.13,147.08,2.2029]
[1750837455487,10.11879923,147.13,147.1,6.28629959]
[1750837457188,10.11879923,147.13,147.11,6.7944]
[1750837457493,10.11879923,147.13,147.11,13.08069959]
[1750837457795,3.32489923,147.13,147.11,13.08069959]
[1750837459701,3.32489923,147.13,147.11,6.7944]
[1750837460101,3.32489923,147.13,147.11,6.28629959]
[1750837460296,3.32489923,147.13,147.1,6.28629959]
[1750837460598,3.32489923,147.13,147.11,13.08069959]
[1750837461997,3.32489923,147.13,147.11,6.7944]
[1750837463199,3.32489923,147.13,147.11,13.08069959]
[1750837467606,35.04,147.14,147.11,6.28629959]
[1750837467802,35.04,147.14,147.12,6.28629959]
[1750837468304,2.12799448,147.13,147.12,13.08039959]
[1750837469297,2.12799448,147.13,147.12,6.7941]
[1750837470305,37.16799448,147.14,147.13,6.7936]
[1750837470505,43.96119448,147.14,147.13,6.28897926]
[1750837470699,43.96119448,147.14,147.12,13.08287926]
[1750837470899,2.12799448,147.13,147.12,6.28897926]
[1750837471101,37.16799448,147.14,147.11,8.27502636]
[1750837471303,35.04,147.14,147.13,13.08252148]
[1750837471805,2.12799448,147.15,147.12,8.27502636]
[1750837472005,2.12799448,147.15,147.14,6.28723125]
[1750837473007,2.12799448,147.15,147.14,13.08043125]
[1750837473810,2.12799448,147.15,147.14,6.28723125]
[1750837474309,8.92069448,147.15,147.14,6.28723125]
[1750837475512,6.7932,147.14,147.13,6.28723125]
[1750837475703,8.92119448,147.14,147.13,6.28723125]
[1750837475906,2.12799448,147.14,147.13,6.28723125]
[1750837476112,2.12799448,147.14,147.12,6.794]
[1750837476113,2.12799448,147.14,147.12,15.06902636]
[1750837478105,8.92089448,147.15,147.13,6.7936]
[1750837478407,8.92089448,147.15,147.14,6.28446449]
[1750837478603,36.96799448,147.17,147.14,6.793]
[1750837478812,34.84,147.17,147.15,6.28307038]
[1750837479702,34.84,147.17,147.15,13.07547038]
[1750837480403,36.96799448,147.17,147.15,6.7924]
[1750837480605,36.96799448,147.17,147.15,13.07547038]
[1750837481210,36.96799448,147.17,147.15,6.7924]
[1750837481414,43.75989448,147.17,147.15,6.7924]
[1750837482211,41.6319,147.17,147.15,6.7924]
[1750837482705,41.6319,147.17,147.15,13.07547038]